fUST/lending_fUST_20250817
["ID","MTS","AMOUNT","RATE_DAILY","PERIOD"]
[379734188,1755392214250,-480.0,0.00020293,2]
[379734189,1755392214273,-480.0,0.00020293,2]
[379734190,1755392214296,-480.0,0.00020293,2]
[379734191,1755392214320,-854.61,0.00020293,2]
[379734192,1755392214346,-480.0,0.00020293,2]
[379734193,1755392214368,-480.0,0.00020293,2]
[379734194,1755392214393,-480.0,0.00020293,2]
[379734195,1755392214416,-480.0,0.00020293,2]
[379734196,1755392214441,-616.14,0.00020293,2]
[379734197,1755392214465,-480.0,0.00020293,2]
[379734198,1755392214488,-500.0,0.00020294,2]
[379734199,1755392214512,-480.0,0.00020294,2]
[379734200,1755392214536,-480.0,0.00020294,2]
[379734201,1755392214559,-480.0,0.00020294,2]
[379734202,1755392214582,-480.0,0.00020294,2]
[379734203,1755392214605,-480.0,0.00020294,2]
[379734204,1755392214628,-480.0,0.00020294,2]
[379734205,1755392214652,-480.0,0.00020294,2]
[379734206,1755392214676,-563.98,0.00020294,2]
[379734207,1755392214699,-480.0,0.00020294,2]
[379734208,1755392214721,-480.0,0.00020294,2]
[379734209,1755392214744,-480.0,0.00020294,2]
[379734210,1755392214767,-1050.62,0.00020294,2]
[379734211,1755392214790,-480.0,0.00020294,2]
[379734212,1755392214812,-480.0,0.00020294,2]
[379734213,1755392214835,-480.0,0.00020294,2]
[379734214,1755392214857,-480.0,0.00020294,2]
[379734215,1755392214878,-480.0,0.00020294,2]
[379734216,1755392214900,-480.0,0.00020294,2]
[379734217,1755392214922,-480.0,0.00020294,2]
[379734218,1755392214944,-708.62,0.00020294,2]
[379734219,1755392214970,-480.0,0.00020294,2]
[379734220,1755392214993,-480.0,0.00020294,2]
[379734221,1755392215019,-480.0,0.00020294,2]
[379734222,1755392215041,-480.0,0.00020294,2]
[379734223,1755392215066,-480.0,0.00020294,2]
[379734224,1755392215090,-480.0,0.00020294,2]
[379734225,1755392215114,-505.81,0.00020294,2]
[379734226,1755392215138,-480.0,0.00020294,2]
[379734227,1755392215161,-480.0,0.00020294,2]
[379734228,1755392215185,-480.0,0.00020294,2]
[379734229,1755392215208,-480.0,0.00020294,2]
[379734230,1755392215232,-480.0,0.00020294,2]
[379734231,1755392215255,-480.0,0.00020294,2]
[379734232,1755392215279,-480.0,0.00020294,2]
[379734233,1755392215302,-480.0,0.00020294,2]
[379734234,1755392215325,-480.0,0.00020294,2]
[379734235,1755392215349,-2699.9,0.00020295,2]
[379734236,1755392215374,-9192.55,0.00020295,2]
[379734237,1755392215398,-716.86,0.00020295,2]
[379734238,1755392215422,-480.0,0.00020295,2]
[379734239,1755392215446,-480.0,0.00020295,2]
[379734240,1755392215468,-480.0,0.00020295,2]
[379734241,1755392215491,-1276.63,0.00020299,2]
[379734242,1755392215514,-480.0,0.00020299,2]
[379734243,1755392215810,480.0,0.00020293,2]
[379734244,1755392215898,480.0,0.0002002,2]
[379734245,1755392215925,480.0,0.00020293,2]
[379734246,1755392215963,480.0,0.00020294,2]
[379734247,1755392217208,480.0,0.00020293,2]
[379734248,1755392217726,480.0,0.0002002,2]
[379734249,1755392217979,419.60145679,0.00020294,2]
[379734250,1755392220513,480.0,0.00020293,2]
[379734251,1755392222941,480.0,0.00020294,2]
[379734252,1755392223532,480.0,0.00020293,2]
[379734253,1755392225312,480.0,0.00020021,2]
[379734254,1755392225404,480.0,0.00020021,2]
[379734255,1755392226147,480.0,0.00020295,2]
[379734256,1755392226922,480.0,0.00020292,2]
[379734257,1755392228007,480.0,0.00020293,2]
[379734258,1755392231629,480.0,0.00020293,2]
[379734259,1755392231658,257.452291,0.00013699,2]
[379734260,1755392231869,257.452291,0.00020187,2]
[379734261,1755392233447,1257.95,0.00020021,2]
[379734262,1755392233979,480.0,0.00020293,2]
[379734263,1755392234015,1257.95,0.00020295,2]
[379734264,1755392234431,480.0,0.00020292,2]
[379734265,1755392235321,480.0,0.00020293,2]
[379734266,1755392235956,480.0,0.00020293,2]
[379734267,1755392237522,484.5,0.00020293,2]
[379734268,1755392243426,480.0,0.00020293,2]
[379734269,1755392243565,480.0,0.00020293,2]
[379734270,1755392245847,432.31361121,0.00020293,2]
[379734271,1755392246089,480.0,0.00020293,2]
[379734272,1755392246301,480.0,0.00020293,2]
[379734273,1755392247829,480.0,0.00020293,2]
[379734274,1755392250544,1141.32,0.00020292,2]
[379734275,1755392252033,480.0,0.00020293,2]
[379734276,1755392253965,480.0,0.00020293,2]
[379734277,1755392254366,480.0,0.00020293,2]
[379734278,1755392257000,1006.85,0.00020293,2]
[379734279,1755392262420,480.0,0.00020293,2]
[379734280,1755392263281,2474.91,0.00020021,2]
[379734281,1755392263740,2474.91,0.00020295,2]
[379734282,1755392264675,360.93891413,0.00020293,2]
[379734283,1755392267253,480.0,0.00020293,2]
[379734284,1755392268154,480.0,0.00020293,2]
[379734285,1755392269319,480.0,0.00020293,2]
[379734286,1755392269360,480.0,0.00020021,2]
[379734287,1755392270303,480.0,0.00020295,2]
[379734288,1755392275507,476.99026343,0.00020293,2]
[379734289,1755392276500,2552.33105988,0.000199,2]
[379734290,1755392283350,480.0,0.00020293,2]
[379734291,1755392287419,732.91,0.00020293,2]
[379734292,1755392289257,480.0,0.00020293,2]
[379734293,1755392290134,150.0,0.00019016,2]
[379734294,1755392293087,789.24,0.00020293,2]
[379734295,1755392294277,480.0,0.0002002,2]
[379734296,1755392294558,480.0,0.00020294,2]
[379734297,1755392294680,1153.12,0.00020021,2]
[379734298,1755392295343,1153.12,0.00020295,2]
[379734299,1755392296881,480.0,0.00020293,2]
[379734300,1755392298980,500.0,0.00020293,2]
[379734301,1755392299676,162.92409165,0.0002002,2]
[379734302,1755392301614,1057.03,0.00020021,2]
[379734303,1755392302272,1057.03,0.00020295,2]
[379734304,1755392303179,363.39387725,0.00020021,2]
[379734305,1755392304186,186.17945701,0.00020293,2]
[379734306,1755392306521,480.0,0.00020293,2]
[379734307,1755392311926,480.0,0.00020293,2]
[379734308,1755392314515,480.0,0.00020293,2]
[379734309,1755392314791,245.00057867,0.0002002,2]
[379734310,1755392314822,1692.77,0.00020292,2]
[379734311,1755392318150,480.0,0.00020293,2]
[379734312,1755392321023,480.0,0.00020294,2]
[379734313,1755392321413,538.37956644,0.00020293,2]
[379734314,1755392321640,480.0,0.00020293,2]
[379734315,1755392321973,480.0,0.00020293,2]
[379734316,1755392322815,2462.9,0.00020293,2]
[379734320,1755392324258,480.0,0.0002002,2]
[379734322,1755392324514,480.0,0.00020294,2]
[379734323,1755392327204,480.0,0.0002002,2]
[379734324,1755392327459,480.0,0.00020294,2]
[379734325,1755392327647,480.0,0.00020292,2]
[379734326,1755392332588,463.3700683,0.00020293,2]
[379734327,1755392335099,480.0,0.00020292,2]
[379734328,1755392336312,480.0,0.0002002,2]
[379734329,1755392336558,480.0,0.00020294,2]
[379734330,1755392340133,480.0,0.00020293,2]
[379734331,1755392341199,480.0,0.00020293,2]
[379734332,1755392344146,480.0,0.00020293,2]
[379734333,1755392347045,480.0,0.00020293,2]
[379734335,1755392348886,480.0,0.00020021,2]
[379734336,1755392349417,480.0,0.00020295,2]
[379734337,1755392350380,480.0,0.0002002,2]
[379734338,1755392350655,480.0,0.00020294,2]
[379734339,1755392355946,480.0,0.00020293,2]
[379734340,1755392358486,480.0,0.00020292,2]
[379734341,1755392364672,480.0,0.00020292,2]
[379734342,1755392366569,480.0,0.00020292,2]
[379734343,1755392368037,1368.94,0.00020293,2]
[379734344,1755392377246,480.0,0.00020292,2]
[379734345,1755392378334,538.02,0.00020293,2]
[379734346,1755392378474,4372.1,0.00020293,2]
[379734347,1755392379267,847.57,0.00020292,2]
[379734348,1755392381228,8426.5,0.00020294,2]
[379734349,1755392382554,480.0,0.00020021,2]
[379734350,1755392382642,480.0,0.00020293,2]
[379734351,1755392382896,480.0,0.00020293,2]
[379734352,1755392383719,452.03262997,0.00020295,2]
[379734353,1755392388465,480.0,0.00020293,2]
[379734354,1755392388987,340.00000001,0.0002002,2]
[379734355,1755392390051,480.0,0.00020293,2]
[379734356,1755392390692,360.0,0.00020293,2]
[379734357,1755392392920,480.0,0.00020293,2]
[379734358,1755392393634,1311.9,0.00020293,2]
[379734359,1755392393868,1452.74,0.00020292,2]
[379734360,1755392398148,480.0,0.00020293,2]
[379734361,1755392399104,380.0,0.00020293,2]
[379734362,1755392400840,480.0,0.0002002,2]
[379734363,1755392401077,480.0,0.00020294,2]
[379734364,1755392402660,480.0,0.00020293,2]
[379734365,1755392403559,300.0,0.00020293,2]
[379734366,1755392406841,480.0,0.00020293,2]
[379734367,1755392408486,480.0,0.00020293,2]
[379734368,1755392422216,1170.24,0.00020021,2]
[379734369,1755392422467,1170.24,0.00020295,2]
[379734370,1755392425858,480.0,0.00020293,2]
[379734371,1755392427562,1023.96,0.00020021,2]
[379734372,1755392427735,819.0,0.00020292,2]
[379734373,1755392428108,480.0,0.00020293,2]
[379734374,1755392428600,1023.96,0.00020295,2]
[379734375,1755392433983,480.0,0.00020293,2]
[379734376,1755392437902,480.0,0.00020293,2]
[379734377,1755392439093,480.0,0.00020293,2]
[379734378,1755392441598,480.0,0.00020293,2]
[379734379,1755392442112,584.0,0.00020293,2]
[379734380,1755392442152,480.0,0.00020293,2]
[379734381,1755392444731,380.0,0.00020294,2]
[379734382,1755392447708,2467.25335771,0.000199,2]
[379734383,1755392448513,480.0,0.00020293,2]
[379734384,1755392448545,480.0,0.00020021,2]
[379734385,1755392448809,657.12,0.00020294,2]
[379734386,1755392448953,480.0,0.00020295,2]
[379734387,1755392449246,987.39,0.00020021,2]
[379734388,1755392449279,618.51058851,0.0002002,2]
[379734389,1755392450562,987.39,0.00020295,2]
[379734390,1755392452867,480.0,0.00020292,2]
[379734391,1755392454588,480.0,0.00020021,2]
[379734392,1755392455559,480.0,0.00020295,2]
[379734393,1755392457839,480.0,0.00020293,2]
[379734394,1755392459655,480.0,0.00020293,2]
[379734395,1755392460793,284.26426598,0.00020293,2]
[379734396,1755392463787,480.0,0.00020294,2]
[379734397,1755392464345,480.0,0.00020293,2]
[379734398,1755392467305,702.38,0.00020293,2]
[379734399,1755392470692,2360.28,0.00020292,2]
[379734400,1755392473611,1279.91,0.00020293,2]
[379734401,1755392473663,480.0,0.00020021,2]
[379734402,1755392474135,480.0,0.00020295,2]
[379734403,1755392474927,480.0,0.00020293,2]
[379734404,1755392479087,480.0,0.00020293,2]
[379734405,1755392480492,480.0,0.00020292,2]
[379734406,1755392480682,480.0,0.00020021,2]
[379734407,1755392480936,480.0,0.00020295,2]
[379734408,1755392481646,8075.4,0.0002002,2]
[379734409,1755392481995,8075.4,0.00020294,2]
[379734410,1755392482044,480.0,0.00020293,2]
[379734411,1755392490647,480.0,0.00020021,2]
[379734412,1755392491202,480.0,0.00020295,2]
[379734413,1755392491289,480.0,0.00020292,2]
[379734414,1755392491550,590.47,0.00020293,2]
[379734415,1755392500136,480.0,0.00020293,2]
[379734416,1755392503535,480.0,0.00020293,2]
[379734417,1755392515829,480.0,0.00020293,2]
[379734418,1755392516979,480.0,0.00020293,2]
[379734419,1755392518732,480.0,0.00020294,2]
[379734420,1755392522850,312.65437616,0.00020293,2]
[379734421,1755392524550,480.0,0.00020294,2]
[379734422,1755392524771,480.0,0.00020294,2]
[379734423,1755392524991,480.0,0.00020293,2]
[379734424,1755392525737,629.94174613,0.00019648,2]
[379734425,1755392526061,480.0,0.00020021,2]
[379734426,1755392526572,480.0,0.00020295,2]
[379734427,1755392527644,756.36,0.00020292,2]
[379734428,1755392527933,2519.76698453,0.00019648,2]
[379734429,1755392529726,5663.80623948,0.00019648,2]
[379734430,1755392531786,165.34394799,0.00020065,2]
[379734431,1755392533825,661.37579194,0.00020065,2]
[379734432,1755392536179,1488.09553187,0.00020065,2]
[379734433,1755392537913,2645.50316777,0.00020065,2]
[379734434,1755392537989,360.0,0.00020293,2]
[379734435,1755392539955,964.9,0.00020293,2]
[379734436,1755392540387,4133.59869964,0.00020065,2]
[379734437,1755392542784,5952.38212748,0.00020065,2]
[379734438,1755392545300,8101.8534513,0.00020065,2]
[379734439,1755392546587,480.0,0.00020292,2]
[379734440,1755392547207,10571.43065841,0.00020065,2]
[379734441,1755392549795,480.0,0.00020292,2]
[379734442,1755392556126,480.0,0.00020293,2]
[379734444,1755392559807,2268.66,0.00020294,2]
[379734445,1755392559834,629.74,0.0002002,2]
[379734446,1755392560395,629.74,0.00020294,2]
[379734447,1755392567234,4189.93,0.00020293,2]
[379734448,1755392567461,480.0,0.00020293,2]
[379734449,1755392567932,480.0,0.00020292,2]
[379734450,1755392567978,339.88572831,0.0002002,2]
[379734451,1755392569752,480.0,0.00020293,2]
[379734452,1755392570996,896.10468906,0.00019648,2]
[379734453,1755392573282,3580.83433747,0.00019648,2]
[379734454,1755392573702,480.0,0.00020293,2]
[379734455,1755392575846,817.1092159,0.00020065,2]
[379734456,1755392578237,3265.16842674,0.00020065,2]
[379734458,1755392579201,480.0,0.00020293,2]
[379734459,1755392580200,516.99,0.00020294,2]
[379734460,1755392581375,480.0,0.00020293,2]
[379734461,1755392586260,480.0,0.00020293,2]
[379734462,1755392592377,480.0,0.00020293,2]
[379734463,1755392603491,1226.58,0.00020292,2]
[379734464,1755392610375,480.0,0.00020293,2]
[379734465,1755392613009,480.0,0.00020293,2]
[379734466,1755392613096,480.0,0.00020021,2]
[379734467,1755392613348,480.0,0.0002002,2]
[379734468,1755392613553,480.0,0.00020295,2]
[379734469,1755392613683,363.51734552,0.00020294,2]
[379734470,1755392616003,480.0,0.0002002,2]
[379734471,1755392616246,480.0,0.00020294,2]
[379734472,1755392622870,2385.01157911,0.000199,2]
[379734473,1755392622900,354.45821541,0.00020293,2]
[379734474,1755392624659,480.0,0.00020293,2]
[379734475,1755392625670,480.0,0.00020292,2]
[379734476,1755392630948,480.0,0.00020293,2]
[379734477,1755392632916,679.1,0.00020293,2]
[379734478,1755392632945,968.94,0.00020021,2]
[379734479,1755392633080,480.0,0.00020293,2]
[379734480,1755392633754,968.94,0.00020295,2]
[379734481,1755392635108,666.0,0.00019566,2]
[379734482,1755392641775,480.0,0.00020293,2]
[379734483,1755392642859,480.0,0.00020293,2]
[379734484,1755392648858,480.0,0.00020294,2]
[379734485,1755392659040,480.0,0.00020293,2]
[379734486,1755392663441,565.87,0.00020293,2]
[379734487,1755392666098,480.0,0.0002002,2]
[379734488,1755392668830,480.0,0.00020292,2]
[379734489,1755392669558,480.0,0.00020293,2]
[379734490,1755392685235,2174.14,0.0002002,2]
[379734491,1755392685906,2174.14,0.00020294,2]
[379734492,1755392686618,480.0,0.0002002,2]
[379734493,1755392686936,480.0,0.00020292,2]
[379734496,1755392693996,480.0,0.00020292,2]
[379734497,1755392695794,480.0,0.00020293,2]
[379734498,1755392712790,441.35567931,0.00020293,2]
[379734499,1755392713527,924.69,0.00020293,2]
[379734500,1755392724675,480.0,0.00020294,2]
[379734501,1755392726310,1257.24,0.00020293,2]
[379734502,1755392726340,673.11,0.00020292,2]
[379734503,1755392737452,408.28,0.00019917,2]
[379734504,1755392739902,480.0,0.00020294,2]
[379734505,1755392745195,480.0,0.0002002,2]
[379734506,1755392747279,484.73,0.00020293,2]
[379734507,1755392755302,480.0,0.00020293,2]
[379734509,1755392756782,480.0,0.00020292,2]
[379734514,1755392774245,480.0,0.00020294,2]
[379734521,1755392794668,2305.51119313,0.000199,2]
[379734522,1755392796416,4015.35,0.00020292,2]
[379734523,1755392799065,160.0,0.0002,3]
[379734524,1755392801096,480.0,0.00020293,2]
[379734525,1755392804509,480.0,0.00020293,2]
[379734527,1755392808432,480.0,0.00020292,2]
[379734529,1755392818166,480.0,0.00020293,2]
[379734531,1755392824819,480.0,0.00020293,2]
[379734532,1755392826239,403.08,0.00019927,2]
[379734536,1755392835419,480.0,0.00020294,2]
[379734538,1755392841235,480.0,0.0002002,2]
[379734541,1755392842533,480.0,0.00020294,2]
[379734543,1755392846832,905.11,0.00020021,2]
[379734544,1755392847228,905.11,0.00020295,2]
[379734553,1755392853443,480.0,0.00020292,2]
[379734555,1755392856547,888.19,0.00020294,2]
[379734556,1755392858048,480.0,0.0002002,2]
[379734557,1755392858433,480.0,0.00020294,2]
[379734558,1755392862589,480.0,0.00020293,2]
[379734559,1755392871613,550.64,0.00020292,2]
[379734560,1755392871799,480.0,0.00020293,2]
[379734561,1755392875929,152.29665994,0.00020021,2]
[379734562,1755392889617,480.0,0.00020293,2]
[379734563,1755392901245,480.0,0.0002002,2]
[379734564,1755392901734,480.0,0.00020294,2]
[379734565,1755392905649,1204.85,0.00020292,2]
[379734566,1755392909076,397.95,0.00019916,2]
[379734570,1755392918305,542.29,0.00020292,2]
[379734574,1755392954712,178.86893,0.00019863,2]
[379734575,1755392972043,886.16,0.00020292,2]
[379734576,1755392977917,2228.66082019,0.000199,2]
[379734577,1755392980266,480.0,0.0002002,2]
[379734578,1755392981311,480.0,0.00020294,2]
[379734579,1755392982497,7402.45,0.00020293,2]
[379734580,1755392988606,4934.96,0.00020293,2]
[379734581,1755392990799,392.88,0.00019902,2]
[379734582,1755392998161,480.0,0.00020293,2]
[379734583,1755392998229,480.0,0.00020292,2]
[379734584,1755392999960,851.19,0.0002002,2]
[379734585,1755393000945,851.19,0.00020294,2]
[379734588,1755393020195,480.0,0.00020293,2]
[379734631,1755393032288,-2228.66081995,0.00020403,2]
[379734633,1755393032299,-250.0,0.000205,2]
[379734636,1755393032310,-163.39858246,0.00020521,2]
[379734637,1755393032321,-76.48493178,0.00020564,2]
[379734638,1755393032334,-223.51506822,0.00020564,2]
[379734639,1755393032344,-300.0,0.00020564,2]
[379734641,1755393032355,-300.0,0.00020564,2]
[379734643,1755393032365,-300.0,0.00020564,2]
[379734646,1755393032375,-131.50751884,0.00020564,2]
[379734648,1755393032388,-1068.49248116,0.00020564,2]
[379734650,1755393032399,-450.877,0.00020565,2]
[379734652,1755393032412,-1622.24,0.00020565,2]
[379734654,1755393032423,-480.0,0.00020565,2]
[379734656,1755393032433,-480.0,0.00020565,2]
[379734658,1755393032443,-778.4,0.00020565,2]
[379734660,1755393032455,-1392.21,0.00020565,2]
[379734663,1755393032465,-480.0,0.00020565,2]
[379734665,1755393032476,-204.34359343,0.00020565,2]
[379734668,1755393032494,-580.53640657,0.00020565,2]
[379734669,1755393032505,-480.0,0.00020565,2]
[379734671,1755393032515,-240.99681657,0.00020565,2]
[379734673,1755393032526,-480.0,0.00020565,2]
[379734675,1755393032538,-480.0,0.00020565,2]
[379734677,1755393032549,-37.10754277,0.00020565,2]
[379734693,1755393038325,-1072.02397009,0.00020565,2]
[379734695,1755393038337,-683.88842277,0.00020565,2]
[379734697,1755393038349,-468.91006437,0.00020565,2]
[379734699,1755393038358,-439.32585567,0.00020565,2]
[379734703,1755393038436,-40.67414433,0.00020565,2]
[379734705,1755393038445,-724.84,0.00020565,2]
[379734707,1755393038454,-480.0,0.00020565,2]
[379734709,1755393038466,-862.87839768,0.00020565,2]
[379734711,1755393038478,-230.88160232,0.00020565,2]
[379734713,1755393038487,-480.0,0.00020565,2]
[379734715,1755393038498,-360.42389068,0.00020565,2]
[379734788,1755393040312,-119.57610932,0.00020565,2]
[379734789,1755393040323,-1175.47,0.00020565,2]
[379734790,1755393040334,-480.0,0.00020566,2]
[379734791,1755393040344,-480.0,0.00020566,2]
[379734793,1755393040353,-480.0,0.00020566,2]
[379734794,1755393040362,-480.0,0.00020566,2]
[379734795,1755393040372,-480.0,0.00020566,2]
[379734796,1755393040381,-480.0,0.00020566,2]
[379734797,1755393040391,-480.0,0.00020566,2]
[379734798,1755393040400,-480.0,0.00020566,2]
[379734799,1755393040409,-480.0,0.00020566,2]
[379734800,1755393040422,-480.0,0.00020566,2]
[379734801,1755393040432,-480.0,0.00020566,2]
[379734802,1755393040441,-480.0,0.00020566,2]
[379734803,1755393040450,-480.0,0.00020566,2]
[379734804,1755393040461,-480.0,0.00020566,2]
[379734805,1755393040471,-480.0,0.00020566,2]
[379734806,1755393040481,-480.0,0.00020566,2]
[379734807,1755393040493,-480.0,0.00020566,2]
[379734808,1755393040508,-440.0,0.00020566,2]
[379734809,1755393040517,-480.0,0.00020566,2]
[379734810,1755393040527,-480.0,0.00020566,2]
[379734811,1755393040537,-480.0,0.00020566,2]
[379734812,1755393040547,-480.0,0.00020566,2]
[379734813,1755393040557,-480.0,0.00020566,2]
[379734814,1755393040566,-480.0,0.00020566,2]
[379734815,1755393040575,-480.0,0.00020566,2]
[379734816,1755393040585,-480.0,0.00020566,2]
[379734817,1755393040594,-664.88,0.00020566,2]
[379734818,1755393040604,-480.0,0.00020566,2]
[379734820,1755393040614,-480.0,0.00020566,2]
[379734821,1755393040623,-480.0,0.00020566,2]
[379734822,1755393040632,-480.0,0.00020566,2]
[379734823,1755393040642,-480.0,0.00020566,2]
[379734825,1755393040651,-480.0,0.00020566,2]
[379734826,1755393040660,-480.0,0.00020566,2]
[379734828,1755393040670,-480.0,0.00020566,2]
[379734829,1755393040679,-4015.35,0.00020566,2]
[379734830,1755393040688,-480.0,0.00020566,2]
[379734832,1755393040697,-480.0,0.00020566,2]
[379734834,1755393040708,-480.0,0.00020566,2]
[379734836,1755393040717,-480.0,0.00020566,2]
[379734838,1755393040727,-480.0,0.00020566,2]
[379734840,1755393040736,-480.0,0.00020566,2]
[379734842,1755393040746,-451.07893953,0.00020566,2]
[379734844,1755393040755,-1204.85,0.00020566,2]
[379734846,1755393040765,-480.0,0.00020566,2]
[379734848,1755393040774,-480.0,0.00020566,2]
[379734850,1755393040784,-542.29,0.00020566,2]
[379734852,1755393040793,-480.0,0.00020566,2]
[379734854,1755393040803,-480.0,0.00020566,2]
[379734856,1755393040812,-480.0,0.00020566,2]
[379734858,1755393040822,-886.16,0.00020566,2]
[379734860,1755393040831,-480.0,0.00020566,2]
[379734862,1755393040840,-480.0,0.00020566,2]
[379734864,1755393040849,-480.0,0.00020566,2]
[379734866,1755393040858,-480.0,0.00020566,2]
[379734868,1755393040867,-480.0,0.00020566,2]
[379734870,1755393040877,-480.0,0.00020566,2]
[379734872,1755393040886,-480.0,0.00020566,2]
[379734874,1755393040895,-480.0,0.00020566,2]
[379734876,1755393040905,-645.06,0.00020566,2]
[379734878,1755393040914,-500.0,0.00020566,2]
[379734880,1755393040924,-480.0,0.00020566,2]
[379734882,1755393040933,-480.0,0.00020567,2]
[379734884,1755393040942,-480.0,0.00020567,2]
[379734885,1755393040951,-480.0,0.00020567,2]
[379734887,1755393040960,-480.0,0.00020567,2]
[379734889,1755393040969,-480.0,0.00020567,2]
[379734891,1755393040979,-480.0,0.00020567,2]
[379734893,1755393040988,-480.0,0.00020567,2]
[379734895,1755393040998,-480.0,0.00020567,2]
[379734898,1755393041009,-480.0,0.00020567,2]
[379734900,1755393041018,-538.02,0.00020567,2]
[379734901,1755393041027,-480.0,0.00020567,2]
[379734903,1755393041037,-480.0,0.00020567,2]
[379734905,1755393041047,-480.0,0.00020567,2]
[379734907,1755393041056,-480.0,0.00020567,2]
[379734909,1755393041065,-480.0,0.00020567,2]
[379734911,1755393041075,-480.0,0.00020567,2]
[379734913,1755393041084,-584.0,0.00020567,2]
[379734915,1755393041094,-480.0,0.00020567,2]
[379734917,1755393041103,-480.0,0.00020567,2]
[379734919,1755393041113,-480.0,0.00020567,2]
[379734921,1755393041124,-480.0,0.00020567,2]
[379734923,1755393041133,-503.35235849,0.00020567,2]
[379734925,1755393041142,-480.0,0.00020567,2]
[379734927,1755393041151,-480.0,0.00020567,2]
[379734929,1755393041160,-480.0,0.00020567,2]
[379734931,1755393041169,-480.0,0.00020567,2]
[379734933,1755393041178,-360.0,0.00020567,2]
[379734935,1755393041187,-480.0,0.00020567,2]
[379734937,1755393041196,-679.1,0.00020567,2]
[379734939,1755393041205,-480.0,0.00020567,2]
[379734941,1755393041214,-480.0,0.00020567,2]
[379734942,1755393041223,-480.0,0.00020567,2]
[379734944,1755393041234,-480.0,0.00020567,2]
[379734946,1755393041243,-484.73,0.00020567,2]
[379734948,1755393041254,-480.0,0.00020567,2]
[379734950,1755393041264,-480.0,0.00020567,2]
[379734952,1755393041273,-480.0,0.00020567,2]
[379734954,1755393041283,-7402.45,0.00020567,2]
[379734956,1755393041293,-4934.96,0.00020567,2]
[379734958,1755393041302,-480.0,0.00020567,2]
[379734960,1755393041311,-480.0,0.00020567,2]
[379734962,1755393041320,-500.0,0.00020568,2]
[379734964,1755393041329,-420.0,0.00020568,2]
[379734966,1755393041339,-480.0,0.00020568,2]
[379734968,1755393041349,-480.0,0.00020568,2]
[379734970,1755393041358,-480.0,0.00020568,2]
[379734972,1755393041367,-396.1661864,0.00020568,2]